bitfinex-derivatives/quotes_BTCF0:USTF0_20251125
["timestamp","ask_amount","ask_price","bid_price","bid_amount"]
[1764104877623,0.2313164,87176.0,87175.0,0.23068802]
[1764104877831,0.1232064,87176.0,87175.0,0.23068802]
[1764104878026,0.0114759,87180.0,87176.0,0.04601]
[1764104878231,0.0114757,87182.0,87181.0,0.21159]
[1764104878424,0.2313157,87182.0,87181.0,0.21159]
[1764104879626,0.00011208,87188.0,87187.0,0.21159]
[1764104879826,0.00011208,87188.0,87187.0,0.2230649]
[1764104880127,0.23142688,87188.0,87187.0,0.21159]
[1764104881132,0.01258688,87188.0,87187.0,0.21159]
[1764104881330,0.00017205,87193.0,87192.0,0.2747843]
[1764104881532,0.3608,87213.0,87192.0,0.2747843]
[1764104881533,0.0114728,87204.0,87203.0,0.20164]
[1764104881730,0.1112128,87204.0,87203.0,0.20164]
[1764104882035,0.1112124,87207.0,87206.0,0.10276]
[1764104882235,0.2066224,87207.0,87206.0,0.20164]
[1764104884138,0.002,87207.0,87206.0,0.20164]
[1764104884432,0.003,87207.0,87206.0,0.65221323]
[1764104884733,0.19815,87207.0,87206.0,0.56244]
[1764104884932,0.19815,87207.0,87206.0,0.20164]
[1764104888030,0.19515,87199.0,87198.0,0.20181205]
[1764104888230,0.2066234,87199.0,87198.0,0.20181205]
[1764104889641,0.2076234,87199.0,87198.0,0.20181205]
[1764104890635,0.2086234,87199.0,87198.0,0.20181205]
[1764104890842,0.2076234,87199.0,87198.0,0.20181205]
[1764104891036,0.2096234,87199.0,87198.0,0.00017205]
[1764104891437,0.2086234,87199.0,87198.0,0.00017205]
[1764104892437,0.2100845,87190.0,87179.0,0.011476]
[1764104892636,0.2013,87182.0,87181.0,0.2068956]
[1764104892845,0.2013,87182.0,87181.0,0.19542]
[1764104894943,0.2127763,87177.0,87176.0,0.55622]
[1764104895331,0.1139063,87177.0,87176.0,0.55622]
[1764104895536,0.0114763,87177.0,87176.0,0.55622]
[1764104895834,0.2127763,87177.0,87176.0,0.55622]
[1764104896034,0.2127763,87177.0,87176.0,0.45702]
[1764104896436,0.2127763,87177.0,87176.0,0.09622]
[1764104896639,0.2127763,87177.0,87176.0,0.19542]
[1764104897734,0.2127763,87177.0,87171.0,0.011477]
[1764104897735,0.2564,87176.0,87168.0,0.3608]
[1764104897930,0.2013,87169.0,87168.0,0.55622]
[1764104898742,0.2127773,87169.0,87168.0,0.55622]
[1764104899432,0.2127773,87169.0,87168.0,0.55722]
[1764104900038,0.2127773,87169.0,87168.0,0.19642]
[1764104900745,0.2127773,87169.0,87168.0,0.21503764]
[1764104901345,0.0114773,87169.0,87168.0,0.26073764]
[1764104901542,0.1139069,87172.0,87169.0,0.0114773]
[1764104901738,0.1139069,87172.0,87171.0,0.19542]
[1764104902042,0.1139062,87178.0,87177.0,0.0114761]
[1764104902250,0.1139062,87178.0,87177.0,0.2068961]
[1764104902546,0.0114762,87178.0,87177.0,0.2068961]
[1764104903140,0.0124762,87178.0,87177.0,0.2068961]
[1764104903540,0.1149062,87178.0,87177.0,0.19542]
[1764104903942,0.1159062,87178.0,87177.0,0.19542]
[1764104904549,0.2137762,87178.0,87177.0,0.19542]
[1764104904750,0.2147762,87178.0,87177.0,0.19542]
[1764104904940,0.0134762,87178.0,87177.0,0.19542]
[1764104905136,0.0124762,87178.0,87177.0,0.19542]
[1764104905341,0.0134762,87178.0,87177.0,0.19542]
[1764104905549,0.0124762,87178.0,87177.0,0.19542]
[1764104905741,0.0114762,87178.0,87177.0,0.19542]
[1764104905938,0.0124762,87178.0,87177.0,0.19542]
[1764104906547,0.2137762,87178.0,87177.0,0.19542]
[1764104907740,0.1139062,87178.0,87177.0,0.2068963]
[1764104907943,0.0124762,87178.0,87177.0,0.2068963]
[1764104909348,0.00017205,87190.0,87185.0,0.19542]
[1764104909547,0.01164665,87190.0,87189.0,0.2068947]
[1764104910142,0.00017205,87190.0,87189.0,0.2068947]
[1764104911250,0.20147205,87190.0,87189.0,0.19542]
[1764104911952,0.00117205,87190.0,87189.0,0.19542]
[1764104912654,0.00217205,87190.0,87189.0,0.19542]
[1764104913554,0.00117205,87190.0,87189.0,0.19542]
[1764104914654,0.2127757,87181.0,87180.0,0.33885017]
[1764104914879,0.2127757,87181.0,87180.0,0.19542]
[1764104916751,0.5735757,87181.0,87180.0,0.19542]
[1764104916952,0.5735757,87181.0,87180.0,0.09622]
[1764104917155,0.5735757,87181.0,87170.0,0.18144]
[1764104917156,0.113907,87171.0,87170.0,0.37686]
[1764104917355,0.212777,87171.0,87170.0,0.37686]
[1764104918859,0.212777,87171.0,87170.0,0.37786]
[1764104919068,0.011477,87171.0,87170.0,0.37786]
[1764104919267,0.113907,87171.0,87170.0,0.37786]
[1764104920860,0.212777,87171.0,87170.0,0.37786]
[1764104922562,0.262877,87171.0,87170.0,0.37786]
[1764104922857,0.262877,87171.0,87170.0,0.19642]
[1764104923163,0.262877,87171.0,87170.0,0.09722]
[1764104923378,0.262877,87171.0,87170.0,0.001]
[1764104924467,0.0114785,87160.0,87151.0,1.7e-07]
[1764104924659,0.0114785,87160.0,87142.0,0.20368266]
[1764104924660,0.0114799,87149.0,87142.0,0.20368266]
[1764104924859,0.7216,87152.0,87136.0,0.23888]
[1764104924860,0.3608,87143.0,87136.0,0.23888]
[1764104925160,0.3722807,87143.0,87142.0,0.09611]
[1764104925360,0.0114815,87137.0,87136.0,0.25799208]
[1764104927163,0.0114815,87137.0,87136.0,0.06990208]
[1764104927462,0.0114815,87137.0,87136.0,0.25799208]
[1764104931662,0.0114811,87140.0,87137.0,0.0114815]
[1764104931857,0.08981701,87143.0,87142.0,0.18809]
[1764104932064,0.10129771,87143.0,87142.0,0.18809]
[1764104932569,0.01159771,87143.0,87142.0,0.18809]
[1764104932762,0.00011701,87143.0,87142.0,0.18809]
[1764104933168,0.00111701,87143.0,87142.0,0.18809]
[1764104933666,0.00011701,87143.0,87142.0,0.18809]
[1764104934361,0.00111701,87143.0,87142.0,0.18809]
[1764104936158,0.55709701,87143.0,87142.0,0.18809]
[1764104940068,0.36191701,87143.0,87142.0,0.18809]
[1764104940474,0.00017205,87145.0,87144.0,0.23968]
[1764104942474,0.00117205,87145.0,87144.0,0.23968]
[1764104942674,0.01265255,87145.0,87144.0,0.23968]
[1764104943264,0.01265255,87145.0,87144.0,0.2511606]
[1764104943472,0.00117205,87145.0,87144.0,0.2511606]
[1764104943672,0.0114796,87152.0,87151.0,0.0114794]
[1764104943872,0.0114796,87152.0,87151.0,0.2224594]
[1764104945274,0.0114796,87152.0,87151.0,0.21098]
[1764104945474,0.0124795,87152.0,87151.0,0.2224597]
[1764104945867,0.0114795,87152.0,87151.0,0.2224597]
[1764104946067,0.0124795,87152.0,87151.0,0.2224597]
[1764104947067,0.0124795,87152.0,87151.0,0.21098]
[1764104949672,0.00017205,87160.0,87159.0,0.2224586]
[1764104949863,0.0114779,87165.0,87163.0,0.011478]
[1764104950069,0.0114765,87175.0,87174.0,0.21098]
[1764104950070,0.20571,87175.0,87174.0,0.21098]
[1764104950269,0.0114765,87175.0,87174.0,0.21098]
[1764104950784,0.0114762,87178.0,87175.0,0.0114765]
[1764104950969,0.0114762,87178.0,87177.0,0.21098]
[1764104951171,0.1155762,87178.0,87177.0,0.21098]
[1764104952572,0.2251262,87178.0,87177.0,0.21098]
[1764104953677,0.2271262,87178.0,87177.0,0.21098]
[1764104955771,0.2261262,87178.0,87177.0,0.21098]
[1764104956579,0.2251262,87178.0,87177.0,0.21098]
[1764104956782,0.2261262,87178.0,87177.0,0.21098]
[1764104956975,0.2271262,87178.0,87177.0,0.21098]
[1764104958277,0.2239668,87173.0,87172.0,0.3608]
[1764104958482,0.2239676,87167.0,87166.0,0.10926205]
[1764104958779,0.2239676,87167.0,87166.0,0.00017205]
[1764104961173,0.2239676,87167.0,87166.0,5e-08]
[1764104961574,0.2239715,87137.0,87136.0,0.22973208]
[1764104962981,0.2239715,87137.0,87136.0,0.23073208]
[1764104965180,0.2239715,87137.0,87136.0,0.02011208]
[1764104966884,0.2239715,87137.0,87136.0,0.23073208]
[1764104967075,0.2239715,87137.0,87136.0,0.12920208]
[1764104967276,0.2239715,87137.0,87136.0,0.23073208]
[1764104970286,0.11559255,87145.0,87144.0,0.21062]
[1764104970484,0.01165255,87145.0,87144.0,0.21062]
[1764104970783,0.01165255,87145.0,87144.0,0.23932]
[1764104970986,0.00017205,87145.0,87144.0,0.23932]
[1764104971584,0.0114796,87152.0,87151.0,0.21062]
[1764104971788,0.0114796,87152.0,87151.0,0.2220997]
[1764104972677,0.06428,87160.0,87154.0,0.21062]
[1764104972678,0.0114795,87155.0,87154.0,0.21062]
[1764104974385,0.1154195,87155.0,87154.0,0.21062]
[1764104974585,0.2249695,87155.0,87154.0,0.21062]
[1764104975088,0.2259695,87155.0,87154.0,0.21062]
[1764104976693,0.2249695,87155.0,87154.0,0.21062]
[1764104976993,0.2259695,87155.0,87154.0,0.21062]
[1764104977195,0.1164195,87155.0,87154.0,0.21062]
[1764104977396,0.1174195,87155.0,87154.0,0.21062]
[1764104977589,0.2259695,87155.0,87154.0,0.21062]
[1764104979891,0.002,87155.0,87154.0,0.2220993]
[1764104980688,0.001,87155.0,87154.0,0.2220993]
[1764104980886,0.002,87155.0,87154.0,0.2220993]
[1764104981392,0.00017205,87160.0,87159.0,0.21229]
[1764104981691,0.2305492,87155.0,87154.0,0.10824]
[1764104981997,0.2295502,87147.0,87146.0,0.21061205]
[1764104982693,0.2295502,87147.0,87146.0,0.00017205]
[1764104983292,0.2295502,87147.0,87146.0,0.10741205]
[1764104983496,0.2874902,87147.0,87146.0,0.10741205]
[1764104983894,0.2874902,87147.0,87146.0,0.00017205]
[1764104985895,0.2874902,87147.0,87136.0,0.01911208]
[1764104986195,0.2305515,87137.0,87136.0,0.10724]
[1764104986798,0.011483,87126.0,87125.0,0.57124]
[1764104987097,0.123873,87126.0,87125.0,0.57124]
[1764104987397,0.229553,87126.0,87125.0,0.67984143]
[1764104987896,0.229553,87126.0,87125.0,0.68184143]
[1764104989894,0.00017215,87134.0,87133.0,0.21044]
[1764104990099,0.21924215,87134.0,87133.0,0.57124]
[1764104990995,0.21924215,87134.0,87133.0,0.57224]
[1764104992598,0.21924215,87134.0,87133.0,0.21144]
[1764104992891,0.11256215,87134.0,87133.0,0.21144]
[1764104993493,0.21924215,87134.0,87133.0,0.21144]
[1764104997503,0.58004215,87134.0,87133.0,0.21144]
[1764104998006,0.58004215,87134.0,87133.0,0.001]
[1764104998204,0.00017215,87134.0,87133.0,0.21144]
[1764105001703,0.0114785,87161.0,87133.0,0.21144]
[1764105001704,0.2510995,87152.0,87151.0,0.18181]
[1764105001896,0.18168,87138.0,87137.0,0.54261]
[1764105002097,0.1931614,87138.0,87137.0,0.54261]
[1764105004907,0.1931614,87138.0,87137.0,0.18181]
[1764105005099,0.1931614,87138.0,87137.0,0.09041]
[1764105005511,0.1931623,87131.0,87130.0,0.54261]
[1764105006602,0.1931623,87131.0,87130.0,0.54361]
[1764105007007,0.1931623,87131.0,87130.0,0.001]
[1764105007204,0.18168,87130.0,87129.0,5e-08]
[1764105008406,0.18268,87130.0,87129.0,5e-08]
[1764105009109,0.18668,87130.0,87129.0,5e-08]
[1764105010216,0.18268,87130.0,87129.0,5e-08]
[1764105010512,0.18568,87130.0,87129.0,5e-08]
[1764105011204,0.18468,87130.0,87129.0,5e-08]
[1764105011411,0.18568,87130.0,87129.0,5e-08]
[1764105012107,0.18668,87130.0,87129.0,5e-08]
[1764105012504,0.18568,87130.0,87129.0,5e-08]
[1764105012711,0.18468,87130.0,87129.0,5e-08]
[1764105013009,0.18268,87130.0,87129.0,5e-08]
[1764105013219,0.18668,87130.0,87129.0,5e-08]
[1764105014713,0.18668,87130.0,87129.0,0.18550005]
[1764105014902,0.18568,87130.0,87129.0,0.18550005]
[1764105015108,0.18268,87130.0,87129.0,0.18550005]
[1764105015308,0.004,87130.0,87129.0,5e-08]
[1764105015715,0.001,87130.0,87129.0,5e-08]
[1764105016013,0.004,87130.0,87129.0,5e-08]
[1764105016219,0.001,87130.0,87129.0,5e-08]
[1764105016412,0.004,87130.0,87129.0,5e-08]
[1764105017617,0.004,87130.0,87129.0,0.18550005]
[1764105017813,0.001,87130.0,87129.0,0.18550005]
[1764105018113,0.005,87130.0,87129.0,0.23207005]
[1764105018508,0.004,87130.0,87129.0,0.23207005]
[1764105018708,0.004,87130.0,87129.0,0.59287005]
[1764105019109,0.002,87130.0,87129.0,0.59287005]
[1764105019622,0.001,87130.0,87129.0,0.59287005]
[1764105020708,0.0114822,87132.0,87131.0,0.1855]
[1764105022017,0.1991622,87132.0,87131.0,0.09589]
[1764105022218,0.1991622,87132.0,87131.0,0.1855]
[1764105023830,0.2001622,87132.0,87131.0,0.1855]
[1764105024521,0.2011622,87132.0,87131.0,0.1855]
[1764105027111,0.2011622,87132.0,87129.0,5e-08]
[1764105027112,0.0144822,87132.0,87129.0,5e-08]
[1764105030128,0.2011622,87132.0,87131.0,0.1855]
[1764105030326,0.1083222,87132.0,87131.0,0.1855]
[1764105030628,0.003,87132.0,87131.0,0.1855]
[1764105031126,0.011482,87134.0,87131.0,0.1969822]
[1764105031327,0.003,87132.0,87131.0,0.1969822]
[1764105031820,0.001,87132.0,87131.0,0.1969822]
[1764105032122,0.002,87132.0,87131.0,0.1969822]
[1764105032829,0.001,87132.0,87131.0,0.1969822]
[1764105033531,0.011482,87134.0,87133.0,0.1855]
[1764105034828,0.012482,87134.0,87133.0,0.1855]
[1764105035926,0.001,87134.0,87133.0,0.1855]
[1764105036234,0.0124819,87134.0,87133.0,0.1855]
[1764105036438,0.0114819,87134.0,87133.0,0.1855]
[1764105036625,0.0124819,87134.0,87133.0,0.1855]
[1764105037025,0.0114819,87134.0,87133.0,0.1855]
[1764105037722,0.0124819,87134.0,87133.0,0.1855]
[1764105038231,0.0114819,87134.0,87133.0,0.1855]
[1764105038434,0.0124819,87134.0,87133.0,0.196982]
[1764105039829,0.0114819,87134.0,87133.0,0.196982]
[1764105040024,0.0124819,87134.0,87133.0,0.196982]
[1764105040738,0.0114819,87134.0,87133.0,0.196982]
[1764105041035,0.0124819,87134.0,87133.0,0.196982]
[1764105042828,0.0124819,87134.0,87133.0,0.1855]
[1764105045332,0.0124819,87134.0,87133.0,0.196982]
[1764105045530,0.0124819,87134.0,87133.0,0.1855]
[1764105051438,0.1890619,87134.0,87133.0,0.1855]
[1764105052140,0.1039519,87134.0,87133.0,0.1855]
[1764105054349,0.1890619,87134.0,87133.0,0.1855]
[1764105056845,0.1039519,87134.0,87133.0,0.1855]
[1764105057450,0.1890619,87134.0,87133.0,0.1855]
[1764105057648,0.1039519,87134.0,87133.0,0.1855]
[1764105057849,0.001,87134.0,87133.0,0.1855]
[1764105058047,0.0688615,87138.0,87132.0,0.0114821]
[1764105058048,0.05738,87138.0,87137.0,0.1906115]
[1764105058255,0.05738,87138.0,87137.0,0.5514115]
[1764105058547,0.0114814,87139.0,87138.0,0.17913]
[1764105059738,0.0134814,87139.0,87138.0,0.17913]
[1764105061146,0.00017215,87146.0,87145.0,0.1610105]
[1764105061355,0.5290577,87166.0,87165.0,0.14953]
[1764105061951,0.1682577,87166.0,87165.0,0.14953]
[1764105062250,0.0114777,87166.0,87165.0,0.14953]
[1764105062451,0.0124777,87166.0,87165.0,0.14953]
[1764105062851,0.003,87166.0,87165.0,0.14953]
[1764105063237,0.001,87166.0,87165.0,0.14953]
[1764105063444,0.002,87166.0,87165.0,0.14953]
[1764105063844,0.001,87166.0,87165.0,0.14953]
[1764105064042,0.002,87166.0,87165.0,0.14953]
[1764105065947,0.001,87166.0,87165.0,0.14953]
[1764105068755,0.05743,87170.0,87169.0,0.14953]
[1764105069051,0.05743,87170.0,87169.0,0.5218073]
[1764105069955,0.06043,87170.0,87169.0,0.5218073]
[1764105070550,0.06043,87170.0,87169.0,0.51033]
[1764105070860,0.13815,87170.0,87169.0,0.51033]
[1764105071052,0.06043,87170.0,87169.0,0.51033]
[1764105075150,0.04585,87198.0,87187.0,0.1486]
[1764105075453,0.2053435,87198.0,87197.0,0.1486]
[1764105075959,0.1594948,87188.0,87187.0,0.5094]
[1764105076947,0.1594948,87188.0,87187.0,0.1486]
[1764105077665,0.1594948,87188.0,87187.0,0.24032925]
[1764105077863,0.1604948,87188.0,87187.0,0.24032925]
[1764105078158,0.1634948,87188.0,87187.0,0.24032925]
[1764105078745,0.15202,87188.0,87187.0,0.24032925]
[1764105078945,0.07638,87188.0,87187.0,0.24032925]
[1764105079660,0.07638,87188.0,87187.0,0.60112925]
[1764105081055,0.15202,87188.0,87187.0,0.60112925]
[1764105082055,0.07638,87188.0,87187.0,0.60112925]
[1764105082251,0.004,87188.0,87187.0,0.60112925]
[1764105083062,0.00017205,87196.0,87195.0,0.1600739]
[1764105083359,0.14819205,87196.0,87195.0,0.5208739]
[1764105084157,0.07855205,87196.0,87195.0,0.5208739]
[1764105084956,0.15419205,87196.0,87195.0,0.5208739]
[1764105085358,0.15419205,87196.0,87195.0,0.5383932]
[1764105085554,0.07855205,87196.0,87195.0,0.5383932]
[1764105086369,0.00617205,87196.0,87195.0,0.5383932]
[1764105087778,0.15419205,87196.0,87195.0,0.5269193]
[1764105088670,0.07855205,87196.0,87195.0,0.5383932]
[1764105088866,0.00617205,87196.0,87195.0,0.5383932]
[1764105089179,0.00363866,87196.0,87195.0,0.5383932]
[1764105090270,0.07601866,87196.0,87195.0,0.5383932]
[1764105090470,0.15165866,87196.0,87195.0,0.3783193]
[1764105090676,0.14802,87196.0,87195.0,0.3783193]
[1764105090881,0.14802,87196.0,87195.0,0.3803193]
[1764105091080,0.14802,87196.0,87195.0,0.4558393]
[1764105091585,0.14802,87196.0,87195.0,0.5289193]
[1764105093786,0.14802,87196.0,87195.0,0.5269193]
[1764105099386,0.14902,87196.0,87195.0,0.5269193]
[1764105100390,0.14802,87196.0,87195.0,0.5269193]
[1764105100592,0.14902,87196.0,87195.0,0.5269193]
[1764105101191,0.1604938,87196.0,87195.0,0.5269193]
[1764105102590,0.1604938,87196.0,87195.0,0.5383932]
[1764105104995,0.1604938,87196.0,87195.0,0.5269193]
[1764105105687,0.13295353,87196.0,87195.0,0.5269193]
[1764105105994,0.13295353,87196.0,87195.0,0.1661193]
[1764105106193,0.13295353,87196.0,87195.0,0.0175193]
[1764105106389,0.1612148,87188.0,87187.0,0.25402]
[1764105106594,0.5220148,87188.0,87187.0,0.27089703]
[1764105107595,0.5220148,87188.0,87187.0,0.34264703]
[1764105108588,0.1612148,87188.0,87187.0,0.34264703]
[1764105108788,0.1622148,87188.0,87187.0,0.34264703]
[1764105109093,0.1622148,87188.0,87187.0,0.34164703]
[1764105109298,0.1622148,87188.0,87187.0,0.43117367]
[1764105112490,0.1622148,87188.0,87187.0,0.27089703]
[1764105112683,0.1622148,87188.0,87187.0,0.34164703]
[1764105112887,0.1622148,87188.0,87187.0,0.16040703]
[1764105113795,0.13467151,87188.0,87187.0,0.16040703]
[1764105114787,0.14614631,87188.0,87187.0,0.16040703]
[1764105115190,0.13467151,87188.0,87187.0,0.17188193]
[1764105115396,0.14614631,87188.0,87187.0,0.17188193]
[1764105115589,0.14614631,87188.0,87187.0,0.16040703]
[1764105116788,0.14514631,87188.0,87187.0,0.16040703]
[1764105117799,0.14614631,87188.0,87187.0,0.16040703]
[1764105121897,0.11860346,87188.0,87187.0,0.16040703]
[1764105122201,0.1464348,87188.0,87187.0,0.52120703]
[1764105122798,0.1454348,87188.0,87187.0,0.52120703]
[1764105123000,0.1464348,87188.0,87187.0,0.52120703]
[1764105123601,0.1454348,87188.0,87187.0,0.52120703]
[1764105124194,0.1454348,87188.0,87187.0,0.52220703]
[1764105124693,0.1454348,87188.0,87187.0,0.52120703]
[1764105125500,0.00017205,87204.0,87201.0,0.1391931]
[1764105125705,0.07690475,87204.0,87203.0,0.1391928]
[1764105126403,0.06543205,87204.0,87203.0,0.4999928]
[1764105126799,0.00017205,87204.0,87203.0,0.4999928]
[1764105127005,0.06543205,87204.0,87203.0,0.48852]
[1764105127205,0.13413205,87204.0,87203.0,0.48852]
[1764105127999,0.00017205,87204.0,87203.0,0.48852]
[1764105128997,0.00017205,87204.0,87203.0,0.48952]
[1764105129711,0.03789469,87204.0,87203.0,0.48952]
[1764105131103,0.14560365,87212.0,87211.0,0.1391918]
[1764105131307,0.13725365,87212.0,87211.0,0.1391918]
[1764105132612,0.13725365,87212.0,87211.0,0.12772]
[1764105137508,0.1370827,87204.0,87203.0,0.12987205]
[1764105137710,0.1370827,87204.0,87203.0,0.06320205]
[1764105137908,0.1370827,87204.0,87203.0,0.00017205]
[1764105138308,0.1370827,87204.0,87203.0,0.12987205]
[1764105139516,0.1370827,87204.0,87203.0,0.14134485]
[1764105140015,0.1380827,87204.0,87203.0,0.14134485]
[1764105140707,0.1370827,87204.0,87203.0,0.14134485]
[1764105140902,0.1370827,87204.0,87203.0,0.12987205]
[1764105141110,0.1370827,87204.0,87203.0,0.06320205]
[1764105141307,0.1370827,87204.0,87203.0,0.12987205]
[1764105142209,0.1370827,87204.0,87203.0,0.14134485]
[1764105143012,0.0737124,87207.0,87206.0,0.1411724]
[1764105143217,0.1370824,87207.0,87206.0,0.1411724]
[1764105144022,0.1370824,87207.0,87206.0,0.1297]
[1764105146720,0.12561,87207.0,87206.0,0.1297]
[1764105147224,0.12578205,87212.0,87211.0,0.1411718]
[1764105147822,0.00017205,87212.0,87211.0,0.1411718]
[1764105148015,0.07388365,87212.0,87211.0,0.1297]
[1764105148320,0.01164365,87212.0,87211.0,0.1297]
[1764105151919,0.00017205,87212.0,87211.0,0.1297]
[1764105156716,0.06241205,87212.0,87211.0,0.1297]
[1764105159626,0.12578205,87212.0,87211.0,0.1297]
[1764105161124,0.00017205,87212.0,87211.0,0.1297]
[1764105165322,2.05e-06,87212.0,87211.0,0.1297]
[1764105167032,2.05e-06,87212.0,87211.0,0.24436377]
[1764105167634,0.051968,87240.0,87238.0,0.0114681]
[1764105167937,0.051968,87240.0,87239.0,0.12932]
[1764105167938,0.06207,87240.0,87239.0,0.12932]
[1764105168133,0.3722668,87249.0,87240.0,0.011468]
[1764105168437,0.4995268,87249.0,87248.0,0.12932]
[1764105169435,0.1387268,87249.0,87248.0,0.12932]
[1764105170233,0.1387268,87249.0,87248.0,0.06644]
[1764105170435,0.1397268,87249.0,87248.0,0.12932]
[1764105172336,0.1397268,87249.0,87248.0,0.1451131]
[1764105174042,0.14074694,87249.0,87248.0,0.1451131]
[1764105178741,0.1387278,87241.0,87240.0,0.00017194]
[1764105179040,0.50054794,87241.0,87240.0,0.01599247]
[1764105179842,0.50154794,87241.0,87240.0,0.01599247]
[1764105194455,0.49291794,87241.0,87240.0,0.12560247]
[1764105194651,0.13211794,87241.0,87240.0,0.12560247]
[1764105195362,0.13211794,87241.0,87240.0,0.01599247]
[1764105195559,0.13211794,87241.0,87240.0,0.07062247]
[1764105196862,0.13211794,87241.0,87240.0,0.12560247]
[1764105198561,0.13211794,87241.0,87240.0,0.01599247]
[1764105198756,0.1255791,87231.0,87230.0,0.3608]
[1764105198955,0.1255791,87231.0,87230.0,0.41543]
[1764105199155,0.12659924,87231.0,87230.0,0.47041]
[1764105200360,0.12659924,87231.0,87230.0,0.48571256]
[1764105201565,0.12759924,87231.0,87230.0,0.48571256]
[1764105203256,0.12659924,87231.0,87230.0,0.48571256]
[1764105203458,0.12759924,87231.0,87230.0,0.48571256]
[1764105205561,0.12680458,87231.0,87230.0,0.48571256]
[1764105211258,0.00202014,87231.0,87230.0,0.48571256]
[1764105212072,0.05957014,87231.0,87230.0,0.48571256]
[1764105212275,0.11613014,87231.0,87230.0,0.48571256]
[1764105212573,0.00202014,87231.0,87230.0,0.48571256]
[1764105213071,0.05957014,87231.0,87230.0,0.48571256]
[1764105213874,0.11613014,87231.0,87230.0,0.48571256]
[1764105214962,0.11613014,87231.0,87230.0,0.37610256]
[1764105216373,0.11613014,87231.0,87218.0,0.1436133]
[1764105216374,0.1255802,87223.0,87218.0,0.1436133]
[1764105216883,0.1255822,87208.0,87207.0,0.14404609]
[1764105217066,0.1255844,87191.0,87190.0,0.14106]
[1764105217271,0.1255844,87191.0,87190.0,0.1564287]
[1764105217471,0.1255844,87191.0,87190.0,0.13185929]
[1764105218279,0.12660454,87191.0,87190.0,0.13185929]
[1764105218979,0.12760454,87191.0,87190.0,0.13185929]
[1764105219475,0.11613014,87191.0,87190.0,0.13185929]
[1764105220680,0.11613014,87191.0,87190.0,0.13285929]
[1764105221082,0.00202014,87191.0,87190.0,0.13285929]
[1764105221283,0.10563014,87191.0,87190.0,0.13285929]
[1764105221881,0.00102014,87191.0,87190.0,0.13285929]
[1764105222793,0.00102014,87191.0,87190.0,0.13185929]
[1764105223388,0.00102014,87191.0,87190.0,0.13285929]
[1764105224186,0.1150813,87215.0,87214.0,0.10477]
[1764105224380,0.1150818,87211.0,87210.0,0.13214]
[1764105225492,0.1150818,87211.0,87210.0,0.10477]
[1764105226892,0.1160818,87211.0,87210.0,0.10477]
[1764105229800,0.1150818,87211.0,87210.0,0.10477]
[1764105230000,0.1160818,87211.0,87210.0,0.10477]
[1764105231401,0.1150818,87211.0,87210.0,0.10477]
[1764105232207,0.1160818,87211.0,87210.0,0.10477]
[1764105234097,0.0649018,87211.0,87210.0,0.13755]
[1764105234296,0.0124718,87211.0,87210.0,0.13755]
[1764105234798,0.0649018,87211.0,87210.0,0.13755]
[1764105235195,0.1160818,87211.0,87210.0,0.13755]
[1764105235597,0.1150818,87211.0,87210.0,0.13755]
[1764105238295,0.1150818,87211.0,87210.0,0.10477]
[1764105238896,0.1160818,87211.0,87210.0,0.10477]
[1764105241410,0.1160818,87211.0,87202.0,0.10481194]
[1764105241411,0.1120128,87203.0,87202.0,0.10481194]
[1764105241607,0.1120128,87203.0,87202.0,0.00017194]
[1764105242494,0.1120128,87203.0,87202.0,0.10481194]
[1764105242495,0.0596728,87203.0,87202.0,0.10481194]
[1764105243103,0.1120128,87203.0,87202.0,0.10481194]
[1764105245310,0.1130128,87203.0,87202.0,0.10481194]
[1764105246808,0.001,87203.0,87202.0,0.10481194]
[1764105247412,0.0114723,87208.0,87207.0,0.10464]
[1764105248112,0.0596718,87211.0,87210.0,0.0410616]
[1764105248308,0.0114718,87211.0,87210.0,0.1457016]
[1764105248512,0.1120118,87211.0,87210.0,0.13423]
[1764105249510,0.1120118,87211.0,87210.0,0.10464]
[1764105250619,0.1130118,87211.0,87210.0,0.13423]
[1764105253919,0.1120118,87211.0,87210.0,0.13423]
[1764105257320,0.1120118,87211.0,87210.0,0.10464]
[1764105257526,0.1152124,87206.0,87205.0,0.41079]
[1764105257732,0.1152124,87206.0,87205.0,0.3608]
[1764105258223,0.1152124,87206.0,87205.0,0.41079]
[1764105258724,0.1152124,87206.0,87205.0,0.46217]
[1764105259720,0.1152124,87206.0,87205.0,0.10137]
[1764105260028,0.1162124,87206.0,87205.0,0.10137]
[1764105262331,0.1152128,87203.0,87202.0,0.05016194]
[1764105262826,0.1152128,87203.0,87202.0,0.10154194]
[1764105263424,0.1162128,87203.0,87202.0,0.10154194]
[1764105264324,0.1162128,87203.0,87202.0,0.05016194]
[1764105264531,0.1162128,87203.0,87202.0,0.10154194]
[1764105265030,0.1162128,87203.0,87202.0,0.00017194]
[1764105265937,0.1162128,87203.0,87202.0,0.05016194]
[1764105266229,0.1162128,87203.0,87202.0,0.00017194]
[1764105266733,0.1162128,87203.0,87186.0,0.011475]
[1764105266734,0.1152157,87181.0,87180.0,0.13123]
[1764105266930,0.1152157,87181.0,87180.0,0.10137]
[1764105267129,0.1152157,87181.0,87180.0,0.13123]
[1764105267331,0.1152157,87181.0,87180.0,0.14563589]
[1764105267924,0.1152157,87181.0,87180.0,0.23776714]
[1764105268119,0.00017206,87189.0,87188.0,0.10137]
[1764105268335,0.00017206,87189.0,87188.0,0.1128448]
[1764105271630,0.00017206,87189.0,87188.0,0.1138448]
[1764105272429,0.05266206,87189.0,87188.0,0.10237]
[1764105272624,0.10391206,87189.0,87188.0,0.10237]
[1764105274719,0.10491206,87189.0,87188.0,0.10137]
[1764105275728,0.10391206,87189.0,87188.0,0.10137]
[1764105286334,0.00017206,87189.0,87188.0,0.1128448]
[1764105286540,0.00017206,87189.0,87188.0,0.1335248]
[1764105288238,0.00017206,87189.0,87188.0,0.1345248]
[1764105288835,0.00017206,87189.0,87188.0,0.10237]
[1764105288836,0.09804206,87189.0,87188.0,0.10237]
[1764105290937,0.09904206,87189.0,87188.0,0.10237]
[1764105291443,0.09904206,87189.0,87188.0,0.10137]
[1764105291639,0.09804206,87189.0,87188.0,0.10137]
[1764105291938,0.09904206,87189.0,87188.0,0.10137]
[1764105292138,0.10004206,87189.0,87188.0,0.10137]
[1764105295134,0.09904206,87189.0,87188.0,0.10137]
[1764105295334,0.10004206,87189.0,87188.0,0.10137]
[1764105295534,0.09904206,87189.0,87188.0,0.10137]
[1764105295841,0.10004206,87189.0,87188.0,0.10137]